fUSD/lending_fUSD_20251108
["ID","MTS","AMOUNT","RATE_DAILY","PERIOD"]
[393412391,1762617056312,-516.82,0.00038948,120]
[393412392,1762617056323,-516.82,0.00038948,120]
[393412393,1762617056334,-516.82,0.00038948,120]
[393412394,1762617056343,-516.82,0.00038948,120]
[393412395,1762617056353,-516.86879056,0.00038948,120]
[393412396,1762617056363,-500.0,0.00038948,7]
[393412397,1762617056372,-300.0,0.00038948,10]
[393412398,1762617056382,-666.0,0.00038948,10]
[393412399,1762617056391,-300.0,0.00038948,10]
[393412400,1762617056400,-675.63641778,0.00038948,10]
[393412401,1762617056410,-300.0,0.00038948,10]
[393412402,1762617056419,-666.0,0.00038948,10]
[393412403,1762617056428,-300.0,0.00038948,10]
[393412404,1762617056437,-300.0,0.00038948,10]
[393412405,1762617056447,-666.0,0.00038948,10]
[393412406,1762617056456,-151.0,0.00038949,10]
[393412407,1762617056466,-296.87113101,0.0003895,10]
[393412408,1762617056479,-666.0,0.0003895,10]
[393412409,1762617056488,-1000.0,0.0003895,45]
[393412410,1762617056498,-666.0,0.00038956,10]
[393412411,1762617056509,-960.99,0.00038959,2]
[393412412,1762617056520,-150.0,0.00038959,2]
[393412413,1762617056530,-150.0,0.00038959,2]
[393412414,1762617056540,-150.0,0.00038959,2]
[393412415,1762617056549,-150.0,0.00038959,2]
[393412416,1762617056559,-150.0,0.00038959,2]
[393412417,1762617056568,-150.0,0.00038959,2]
[393412418,1762617056577,-150.0,0.00038959,2]
[393412419,1762617056587,-150.0,0.00038959,2]
[393412420,1762617056596,-150.0,0.00038959,2]
[393412421,1762617056606,-150.0,0.00038959,2]
[393412422,1762617056615,-150.55,0.00038959,2]
[393412423,1762617056626,-150.0,0.00038959,2]
[393412424,1762617056636,-666.0,0.00038966,10]
[393412425,1762617056645,-500.0,0.00038969,10]
[393412426,1762617056654,-536.0,0.00038973,2]
[393412427,1762617056664,-25451.9692234,0.00038977,4]
[393412428,1762617056678,-303.99280505,0.0003898,120]
[393412429,1762617056688,-34249.60171282,0.00038987,7]
[393412430,1762617056697,-2897.80359475,0.00038987,120]
[393412431,1762617056707,-150.0,0.00038992,2]
[393412432,1762617056717,-594.93653412,0.00038992,2]
[393412433,1762617056726,-2910.0038791,0.00038993,30]
[393412434,1762617056736,-1000.0,0.00038997,14]
[393412435,1762617056745,-1000.0,0.00038997,14]
[393412436,1762617056755,-1000.0,0.00038997,14]
[393412437,1762617056765,-1000.0,0.00038997,14]
[393412438,1762617056774,-1000.0,0.00038997,14]
[393412439,1762617056784,-1000.0,0.00038997,14]
[393412440,1762617056793,-1000.0,0.00038997,14]
[393412441,1762617056804,-1000.0,0.00038997,14]
[393412442,1762617056813,-500.0,0.00038999,7]
[393412443,1762617056823,-500.0,0.00038999,7]
[393412444,1762617056832,-500.0,0.00038999,7]
[393412445,1762617056842,-500.0,0.00038999,7]
[393412446,1762617056851,-200.0,0.00038999,30]
[393412447,1762617056861,-268.04,0.00038999,30]
[393412448,1762617056874,-10000.0,0.00039,120]
[393412449,1762617056883,-1999.99,0.00039,2]
[393412450,1762617056893,-2000.0,0.00039,2]
[393412451,1762617056903,-2000.0,0.00039,2]
[393412452,1762617056912,-1969.86,0.00039,2]
[393412453,1762617056922,-2000.0,0.00039,2]
[393412454,1762617056932,-2440.38,0.00039,120]
[393412455,1762617056941,-160.0,0.00039,14]
[393412456,1762617056951,-160.93,0.00039,7]
[393412457,1762617056960,-10113.41594268,0.00039,20]
[393412458,1762617056970,-7004.87,0.00039,14]
[393412459,1762617056979,-723.36,0.00039,30]
[393412460,1762617056989,-345429.64606577,0.00039,120]
[393412461,1762617057120,-8574.28768749,0.00039,120]
[393412462,1762617057132,-298.79780336,0.00039,120]
[393412463,1762617057798,-150.0,0.00032761,2]
[393412464,1762617057808,-131.10000611,0.00032761,2]
[393412465,1762617057888,-774.89999389,0.00032761,2]
[393412466,1762617057898,-905.0,0.00035761,2]
[393412467,1762617057907,-375.394543,0.0003699,30]
[393412468,1762617057917,-375.394543,0.0003699,30]
[393412469,1762617057927,-1674.280709,0.0003699,31]
[393412470,1762617057937,-375.394543,0.0003699,30]
[393412471,1762617057947,-1674.280709,0.0003699,31]
[393412472,1762617057957,-375.394543,0.0003719,30]
[393412473,1762617057967,-375.394543,0.0003719,30]
[393412474,1762617057978,-1674.280709,0.0003719,31]
[393412475,1762617057988,-375.394543,0.0003719,30]
[393412476,1762617057998,-1674.280709,0.0003719,31]
[393412477,1762617058008,-375.394543,0.00037318,30]
[393412478,1762617058018,-375.394543,0.00037318,30]
[393412479,1762617058028,-1674.280709,0.00037318,31]
[393412480,1762617058038,-375.394543,0.00037318,30]
[393412481,1762617058048,-417.80945759,0.00037318,31]
[393412492,1762617175046,20000.0,0.00018,2]
[393412493,1762617634045,-478.09862864,0.00032725,2]
[393412508,1762618232283,-150.0,0.00032761,2]
[393412509,1762618232293,-150.0,0.00032761,2]
[393412510,1762618232302,-300.0,0.00033088,60]
[393412511,1762618232313,-150.0,0.00033416,2]
[393412512,1762618232322,-785.406785,0.00033439,3]
[393412513,1762618232334,-414.593215,0.00033439,3]
[393412514,1762618232343,-283.616,0.0003344,2]
[393412515,1762618232353,-150.0,0.0003344,2]
[393412516,1762618232363,-405.244,0.0003344,2]
[393412517,1762618232372,-1316.0,0.0003344,2]
[393412518,1762618232381,-175.82453998,0.00034198,70]
[393412519,1762618232391,-159.945,0.00034298,2]
[393412520,1762618232401,-812.0,0.00034298,2]
[393412521,1762618232410,-1273.0,0.00034298,2]
[393412522,1762618232419,-2142.0,0.00034298,2]
[393412523,1762618232428,-211.0,0.00035139,2]
[393412524,1762618232438,-211.0,0.00035169,7]
[393412525,1762618232447,-211.0,0.0003518,2]
[393412526,1762618232457,-887.42,0.0003522,5]
[393412527,1762618232466,-887.02,0.00035232,5]
[393412528,1762618232476,-9999.99,0.00035232,2]
[393412529,1762618232486,-860.91,0.00035248,5]
[393412530,1762618232495,-150.99,0.00035248,2]
[393412531,1762618232504,-892.13,0.00035299,5]
[393412532,1762618232514,-867.27,0.00035331,5]
[393412533,1762618232523,-469.0,0.000354,2]
[393412534,1762618232533,-211.0,0.00035456,2]
[393412535,1762618232546,-211.0,0.00035696,2]
[393412536,1762618232555,-1346.80511633,0.000359,2]
[393412537,1762618232567,-653.19488367,0.000359,2]
[393412538,1762618232576,-550.0,0.00035914,2]
[393412539,1762618232586,-552.3,0.00035915,14]
[393412540,1762618232596,-151.0,0.00035915,2]
[393412541,1762618232609,-151.0,0.00035915,2]
[393412542,1762618232619,-151.0,0.00035915,2]
[393412543,1762618232628,-151.0,0.00035915,2]
[393412545,1762618232638,-151.0,0.00035915,2]
[393412547,1762618232649,-151.0,0.00035915,2]
[393412549,1762618232658,-151.0,0.00035915,2]
[393412551,1762618232669,-151.0,0.00035915,2]
[393412553,1762618232679,-151.0,0.00035915,2]
[393412555,1762618232688,-151.0,0.00035915,2]
[393412557,1762618232697,-151.0,0.00035915,2]
[393412559,1762618232706,-151.0,0.00035915,2]
[393412561,1762618232715,-151.0,0.00035915,2]
[393412563,1762618232725,-151.0,0.00035915,2]
[393412565,1762618232734,-151.0,0.00035915,2]
[393412567,1762618232743,-151.0,0.00035915,2]
[393412569,1762618232752,-151.0,0.00035915,2]
[393412571,1762618232761,-151.0,0.00035915,2]
[393412573,1762618232771,-151.0,0.00035915,2]
[393412575,1762618232780,-151.0,0.00035915,2]
[393412577,1762618232789,-211.0,0.00035922,2]
[393412579,1762618232798,-2637.41,0.00035926,2]
[393412581,1762618232808,-999.0,0.00035934,3]
[393412583,1762618232817,-150.0,0.00036,2]
[393412585,1762618232828,-250.0,0.00036037,2]
[393412587,1762618232848,-300.0,0.00036037,60]
[393412589,1762618232857,-535.46,0.0003604,2]
[393412591,1762618232867,-1374.96,0.00036188,30]
[393412593,1762618232876,-552.3,0.00036189,14]
[393412595,1762618232887,-211.0,0.00036277,2]
[393412597,1762618232897,-2713.764,0.00036318,44]
[393412599,1762618232906,-175.263,0.00036318,44]
[393412600,1762618232915,-250.0,0.00036318,2]
[393412602,1762618232924,-552.3,0.00036463,14]
[393412604,1762618232934,-552.3,0.00036737,14]
[393412606,1762618232943,-211.0,0.00036894,120]
[393412608,1762618232952,-211.0,0.00036931,2]
[393412610,1762618232962,-212.0,0.00036998,7]
[393412611,1762618232971,-552.3,0.00037011,14]
[393412613,1762618232980,-211.0,0.00037051,2]
[393412615,1762618232989,-1852.42,0.00037088,2]
[393412617,1762618232998,-212.0,0.00037094,2]
[393412619,1762618233008,-212.0,0.00037109,7]
[393412621,1762618233018,-1000.0,0.00037134,2]
[393412623,1762618233034,-5000.0,0.00037135,2]
[393412624,1762618233044,-10781.91409361,0.000372,120]
[393412625,1762618233053,-211.0,0.00037214,120]
[393412626,1762618233064,-552.35,0.00037285,14]
[393412627,1762618233073,-2141.0,0.00037298,2]
[393412628,1762618233083,-867.11,0.00037337,5]
[393412629,1762618233092,-500.0,0.00037365,7]
[393412630,1762618233101,-500.0,0.00037365,7]
[393412631,1762618233110,-500.0,0.00037365,7]
[393412632,1762618233119,-212.0,0.0003745,2]
[393412633,1762618233128,-9733.90538233,0.00037531,120]
[393412634,1762618233140,-1048.00871128,0.00037531,120]
[393412635,1762618233150,-150.0,0.00037639,7]
[393412636,1762618233159,-150.0,0.00037639,2]
[393412638,1762618233169,-150.0,0.00037749,120]
[393412640,1762618233179,-212.0,0.00037762,120]
[393412642,1762618233188,-150.0,0.00037776,7]
[393412644,1762618233197,-187.85515074,0.00037913,7]
[393412646,1762618233206,-211.0,0.00037993,2]
[393412648,1762618233216,-2000.0,0.00038,120]
[393412650,1762618233226,-211.0,0.00038062,7]
[393412652,1762618233236,-1000.0,0.00038084,2]
[393412654,1762618233246,-2500.0,0.00038084,2]
[393412656,1762618233256,-151.19137113,0.00038087,15]
[393412658,1762618233265,-157.79916549,0.00038087,2]
[393412660,1762618233275,-211.0,0.00038165,2]
[393412661,1762618233284,-211.0,0.00038169,2]
[393412663,1762618233294,-7765.16020736,0.00038174,4]
[393412666,1762618233306,-1621.73849155,0.00038174,4]
[393412668,1762618233318,-2244.48679001,0.00038174,4]
[393412670,1762618233333,-50150.63968418,0.00038174,4]
[393412672,1762618233343,-500.0,0.00038183,120]
[393412674,1762618233352,-500.0,0.00038183,7]
[393412675,1762618233362,-500.0,0.00038183,2]
[393412676,1762618233372,-619.19780857,0.00038183,15]
[393412677,1762618233382,-70497.91611263,0.00038184,2]
[393412678,1762618233395,-9127.84833765,0.00038184,2]
[393412679,1762618233407,-467.5732908,0.00038184,2]
[393412690,1762618238482,-21875.79211154,0.00038184,2]
[393412691,1762618238536,-5401.9262761,0.00038184,2]
[393412692,1762618238591,-902.46754833,0.00038184,2]
[393412693,1762618238607,-490.9180959,0.00038184,2]
[393412704,1762618240163,-3775.91971424,0.00038184,2]
[393412705,1762618240229,-460.0,0.00038184,2]
[393412706,1762618240241,-1250.0,0.00038184,2]
[393412707,1762618240296,-5091.78762921,0.00038184,2]
[393412708,1762618240361,-2864.2587092,0.00038184,2]
[393412710,1762618240639,-51439.46156703,0.00038184,2]
[393412745,1762618245251,-1000.0,0.00037831,2]
[393412746,1762618245261,-29053.30091309,0.00038184,2]
[393412747,1762618245273,-5145.0,0.00038184,2]
[393412748,1762618245284,-857.42657,0.00038184,2]
[393412749,1762618245295,-3231.60025373,0.00038184,2]
[393412750,1762618245505,-510.43405741,0.00038184,2]
[393412751,1762618245517,-413.40361817,0.00038184,2]
[393412762,1762618246365,-462.26435536,0.00038184,2]
[393412763,1762618246728,-31468.49648309,0.00038184,2]
[393412764,1762618246739,-991.980989,0.00038184,2]
[393412765,1762618246754,-405.92959194,0.00038184,2]
[393412766,1762618246766,-279.72500088,0.00038184,2]
[393412767,1762618246782,-1125.59477348,0.00038184,2]
[393412768,1762618246793,-5375.0,0.00038184,2]
[393412769,1762618246807,-15288.4,0.00038184,2]
[393412770,1762618246820,-415.84897614,0.00038184,2]
[393412771,1762618246831,-2040.0,0.00038184,2]
[393412772,1762618246842,-47225.14013939,0.00038184,2]
[393412773,1762618246854,-4342.39218569,0.00038184,2]
[393412774,1762618246864,-500.0,0.00038187,7]
[393412775,1762618246873,-211.0,0.00038279,2]
[393412776,1762618246883,-211.0,0.00038344,7]
[393412777,1762618246892,-239.18316,0.00038352,2]
[393412778,1762618246902,-500.0,0.00038356,2]
[393412779,1762618246912,-231.89537372,0.00038356,2]
[393412780,1762618246921,-150.0,0.00038362,120]
[393412781,1762618246931,-500.0,0.00038386,7]
[393412782,1762618246940,-2000.0,0.000384,120]
[393412783,1762618246949,-200.0,0.00038404,20]
[393412784,1762618246962,-212.0,0.00038441,120]
[393412785,1762618246971,-212.0,0.00038603,2]
[393412786,1762618246981,-150.0,0.00038658,30]
[393412788,1762618246991,-179.26438629,0.000387,120]
[393412790,1762618247000,-181.29228187,0.000387,120]
[393412791,1762618247009,-170.71204111,0.000387,120]
[393412792,1762618247019,-184.70662914,0.000387,120]
[393412793,1762618247030,-1302.51565044,0.000387,120]
[393412794,1762618247039,-300.0,0.00038725,2]
[393412795,1762618247050,-151.0,0.00038728,14]
[393412796,1762618247059,-300.0,0.00038729,2]
[393412797,1762618247069,-13160.72947804,0.00038731,4]
[393412801,1762618496653,315.79,0.00013699,2]
[393412802,1762619107831,2999684.21,0.00018,2]
[393412821,1762619432269,-500.0,0.0001799,2]
[393412823,1762619432278,-516.03797227,0.0001799,2]
[393412825,1762619432288,-516.03797227,0.0001799,2]
[393412827,1762619432297,-175.80817227,0.00017994,2]
[393412828,1762619432324,-19.19182773,0.00017994,2]
[393412829,1762619432339,-300.0,0.00017998,2]
[393412830,1762619432349,-282.14075211,0.00017999,2]
[393412831,1762619432527,-217.85924789,0.00017999,2]
[393412832,1762619432538,-482.14075211,0.00017999,2]
[393412833,1762619432550,-31.63123085,0.00017999,2]
[393412834,1762619432561,-500.0,0.00017999,2]
[393412835,1762619432570,-500.0,0.00017999,2]
[393412836,1762619432581,-500.0,0.00017999,2]
[393412837,1762619432590,-174.86469354,0.00017999,2]
[393412838,1762619432601,-325.13530646,0.00017999,2]
[393412839,1762619432611,-500.0,0.00017999,2]
[393412840,1762619432620,-256.26939158,0.00017999,2]
[393412842,1762619432632,-840.72249696,0.00018,2]
[393412844,1762619432644,-14138.47610242,0.00018,2]
[393412859,1762619432655,-12975.29507859,0.00018,2]
[393412861,1762619432856,-10874.45544483,0.00018,2]
[393412863,1762619432867,-673.596331,0.00018,2]
[393412866,1762619432883,-558623.59743338,0.00018,2]
[393412903,1762619438273,-3794.33075425,0.00018,2]
[393412904,1762619438285,-540.01220046,0.00018,2]
[393412905,1762619438297,-20266.5663489,0.00018,2]
[393412906,1762619438446,-10758.03001511,0.00018,2]
[393412917,1762619440310,-957.97619705,0.00018,2]
[393412918,1762619440425,-205305.8120842,0.00018,2]
[393412919,1762619440440,-585.50720326,0.00018,2]
[393412920,1762619440460,-646.95913224,0.00018,2]
[393412921,1762619440471,-13272.27722122,0.00018,2]
[393412922,1762619440484,-1529.6485475,0.00018,2]
[393412923,1762619440542,-107913.05119233,0.00018,2]
[393412924,1762619440557,-25959.31980334,0.00018,2]
[393412925,1762619440572,-4972.20973071,0.00018,2]
[393412926,1762619440586,-74696.59383982,0.00018,2]
[393412927,1762619440599,-501.94320165,0.00018,2]
[393412928,1762619440610,-43987.87987322,0.00018,2]
[393412929,1762619440622,-660.87102022,0.00018,2]
[393412930,1762619440634,-2416.11792847,0.00018,2]
[393412931,1762619440646,-360.42425931,0.00018,2]
[393412932,1762619440721,-11470.0,0.00018,2]
[393412942,1762619444738,-500.0,0.00017999,2]
[393412943,1762619444748,-474270.52496963,0.00018,2]
[393412944,1762619444760,-872.26117996,0.00018,2]
[393412945,1762619444796,-17052.72775998,0.00018,2]
[393412946,1762619444886,-540991.54979903,0.00018,2]
[393412947,1762619445031,-509.29037297,0.00018,2]
[393412948,1762619445046,-467.5619357,0.00018,2]
[393412949,1762619445111,-34.29182425,0.00018,2]
[393412958,1762619446576,-3984.17944076,0.00018,2]
[393412959,1762619446588,-1059.9,0.00018,2]
[393412960,1762619446600,-10776.9347374,0.00018,2]
[393412961,1762619446611,-288.89118015,0.00018,2]
[393412962,1762619446859,-339.2552879,0.00018,2]
[393412963,1762619446953,-361447.3892513,0.00018,2]
[393412964,1762619446969,-6714.98335691,0.00018,2]
[393412965,1762619446980,-10891.64815684,0.00018,2]
[393412966,1762619446992,-489.80468274,0.00018,2]
[393412967,1762619447003,-1237.79939879,0.00018,2]
[393412968,1762619447015,-388.61022709,0.00018,2]
[393413157,1762620093215,1500.0,0.0003013,120]
[393413158,1762620105021,1500.0,0.0003013,120]
[393413159,1762620452835,-160.0,0.00017638,2]
[393413160,1762620452867,-195.0,0.00017719,2]
[393413161,1762620452897,-289.87235092,0.00017759,2]
[393413162,1762620452930,-156.38959891,0.00017799,2]
[393413163,1762620452960,-1200.0,0.00017898,2]
[393413164,1762620452989,-300.0,0.00017898,2]
[393413165,1762620453017,-300.0,0.00017898,2]
[393413166,1762620453047,-530.0,0.00017899,2]
[393413167,1762620453076,-557.43795098,0.000179,2]
[393413168,1762620453105,-557.43795097,0.000179,2]
[393413169,1762620453138,-4711.07461821,0.000179,2]
[393413170,1762620453169,-156.38959891,0.000179,2]
[393413171,1762620453197,-504.83378329,0.00017973,2]
[393413172,1762620453226,-732.35,0.00017989,2]
[393413173,1762620453260,-151.0,0.00017989,2]
[393413174,1762620453291,-151.0,0.00017989,2]
[393413175,1762620453324,-151.0,0.00017989,2]
[393413176,1762620453359,-151.0,0.00017989,2]
[393413177,1762620453390,-151.0,0.00017989,2]
[393413178,1762620453420,-151.0,0.00017989,2]
[393413179,1762620453452,-151.0,0.00017989,2]
[393413180,1762620453482,-151.0,0.00017989,2]
[393413181,1762620453512,-151.0,0.00017989,2]
[393413182,1762620453546,-151.0,0.00017989,2]
[393413183,1762620453579,-151.0,0.00017989,2]
[393413184,1762620453609,-151.0,0.00017989,2]
[393413185,1762620453640,-151.0,0.00017989,2]
[393413186,1762620453671,-151.0,0.00017989,2]
[393413187,1762620453885,-151.0,0.00017989,2]
[393413188,1762620453917,-151.0,0.00017989,2]
[393413189,1762620453964,-151.0,0.00017989,2]
[393413190,1762620453996,-13.42829562,0.00017989,2]
[393413191,1762620454010,-137.57170438,0.00017989,2]
[393413192,1762620454019,-22.42829562,0.00017989,2]
[393413193,1762620454031,-128.57170438,0.00017989,2]
[393413194,1762620454040,-66.42829562,0.00017989,2]
[393413195,1762620454052,-84.57170438,0.00017989,2]
[393413196,1762620454062,-172.01265743,0.0001799,2]
[393413197,1762620454071,-33.28798911,0.00017999,5]
[393413198,1762620454087,-156.38959891,0.00017999,5]
[393413199,1762620454103,-1028.24500227,0.00017999,5]
[393413200,1762620454113,-171.75499773,0.00017999,2]
[393413201,1762620454124,-300.0,0.00017999,2]
[393413202,1762620454136,-300.0,0.00017999,2]
[393413203,1762620454148,-530.0,0.00017999,2]
[393413204,1762620454184,-557.43795098,0.00017999,2]
[393413205,1762620454195,-557.43795097,0.00017999,2]
[393413206,1762620454207,-4711.07461821,0.00017999,2]
[393413207,1762620454218,-156.38959891,0.00017999,2]
[393413208,1762620454234,-504.83378329,0.00017999,2]
[393413209,1762620454245,-732.35,0.00017999,2]
[393413210,1762620454260,-151.0,0.00017999,2]
[393413211,1762620454276,-151.0,0.00017999,2]
[393413212,1762620454289,-151.0,0.00017999,2]
[393413213,1762620454303,-151.0,0.00017999,2]
[393413214,1762620454316,-33.09492592,0.00017999,2]
[393413215,1762620454326,-117.90507408,0.00017999,2]
[393413216,1762620454346,-151.0,0.00017999,2]
[393413217,1762620454374,-151.0,0.00017999,2]
[393413218,1762620454387,-80.09492592,0.00017999,2]
[393413219,1762620454397,-70.90507408,0.00017999,2]
[393413220,1762620454408,-151.0,0.00017999,2]
[393413221,1762620454420,-151.0,0.00017999,2]
[393413222,1762620454431,-127.09492592,0.00017999,2]
[393413223,1762620454441,-23.90507408,0.00017999,2]
[393413224,1762620454452,-151.0,0.00017999,2]
[393413225,1762620454464,-151.0,0.00017999,2]
[393413226,1762620454479,-151.0,0.00017999,2]
[393413227,1762620454494,-23.09492592,0.00017999,2]
[393413228,1762620454505,-127.90507408,0.00017999,2]
[393413229,1762620454516,-151.0,0.00017999,2]
[393413230,1762620454528,-151.0,0.00017999,2]
[393413231,1762620454544,-151.0,0.00017999,2]
[393413245,1762620631432,-1200.0,0.00017899,2]
[393413247,1762620631442,-9770.46980438,0.000179,2]
[393413249,1762620631452,-160.56398268,0.000179,2]
[393413251,1762620631461,-172.01265743,0.0001799,2]
[393413253,1762620631471,-300.0,0.00017998,2]
[393413254,1762620631481,-300.0,0.00017998,2]
[393413255,1762620631491,-929.97670863,0.00017999,2]
[393413256,1762620631503,-1241.03429137,0.00017999,2]
[393413257,1762620631513,-175.263,0.00017999,2]
[393413258,1762620631525,-530.67245019,0.00017999,2]
[393413259,1762620631534,-2331.25675844,0.00018,2]
[393413260,1762620631546,-98917.27268176,0.00018,2]
[393413261,1762620631557,-131254.74639853,0.00018,2]
[393413262,1762620631569,-36521.56958091,0.00018,2]
[393413263,1762620631580,-1629.000003,0.00018,2]
[393413264,1762620631591,-702.36835528,0.00018,2]
[393413265,1762620631602,-4171.73504545,0.00018,2]
[393413266,1762620631613,-1373.50951178,0.00018,2]
[393413278,1762620631907,-2337.65504712,0.00018,2]
[393413281,1762620631925,-3304.16149517,0.00018,2]
[393413284,1762620631939,-5378.53161582,0.00018,2]
[393413298,1762620637447,-11107.69966403,0.00018,2]
[393413299,1762620637688,-4005.20858304,0.00018,2]
[393413303,1762620639484,-8537.49315708,0.00018,2]
[393413304,1762620639497,-1438.13285037,0.00018,2]
[393413305,1762620639509,-2184.2505074,0.00018,2]
[393413306,1762620639747,-510.25,0.00018,2]
[393413330,1762620642596,-1845.22673869,0.000179,2]
[393413331,1762620642649,-845.8784781,0.000179,2]
[393413332,1762620642916,-680.5431875,0.000179,2]
[393413337,1762620645803,-455.0,0.000179,2]
[393413338,1762620645861,-413.31875209,0.000179,2]
[393413339,1762620645871,-299.36324791,0.00018,2]
[393413340,1762620646072,-788.96860163,0.00018,2]
[393413341,1762620646125,-985.01000029,0.00018,2]
[393413342,1762620646183,-2521.57214749,0.00018,2]
[393413343,1762620923443,150.0,0.00020103,120]
[393413344,1762621016450,176.54,0.00016107,2]
[393413346,1762621039176,383.64,0.00013699,2]
[393413347,1762621233975,-250.0,0.00017,2]
[393413352,1762621328235,1616.83,0.00016438,2]
[393413353,1762621521333,1643.68,8.809e-05,2]
[393413354,1762621521538,1643.68,9.254e-05,2]
[393413355,1762621521733,1643.68,9.7e-05,2]
[393413356,1762621521927,1643.68,0.00010145,2]
[393413357,1762621522165,1643.68,0.00010591,2]
[393413358,1762621522368,1643.68,0.00011036,2]
[393413359,1762621522573,1643.68,0.00011481,2]
[393413360,1762621522757,1643.68,0.00011927,2]
[393413361,1762621523000,1643.68,0.00012372,2]
[393413362,1762621523403,1643.68,0.00012818,2]
[393413363,1762621523612,1643.68,0.00013263,2]
[393413364,1762621523814,1643.68,0.00013709,2]
[393413365,1762621524020,1643.68,0.00014154,2]
[393413366,1762621524219,1643.68,0.000146,2]
[393413367,1762621524425,1643.68,0.00015045,2]
[393413368,1762621524827,1643.68,0.00015491,2]
[393413369,1762621525017,1643.68,0.00015936,2]
[393413370,1762621525209,1643.68,0.00016381,2]
[393413390,1762621831699,-1516.951264,0.00016827,2]
[393413391,1762621831754,-126.728736,0.00016827,2]
[393413392,1762621831765,-300.0,0.0001705,2]
[393413393,1762621831775,-388.24324073,0.00017272,2]
[393413394,1762621831786,-1255.43675927,0.00017272,2]
[393413395,1762621831796,-1685.14,0.00017425,2]
[393413396,1762621831805,-117.22371789,0.00017461,2]
[393413397,1762621832073,-622.65975627,0.00017461,2]
[393413399,1762621832085,-397.84647269,0.00017461,2]
[393413402,1762621832096,-134.50005315,0.00017461,2]
[393413403,1762621832105,-221.8242667,0.0001755,2]
[393413405,1762621832114,-300.0,0.000176,6]
[393413407,1762621832125,-15.54095047,0.00017612,2]
[393413424,1762621837762,-1184.45904953,0.00017612,2]
[393413425,1762621837772,-893.79653186,0.00017613,2]
[393413426,1762621837782,-1200.0,0.00017696,2]
[393413427,1762621837793,-300.0,0.00017696,2]
[393413428,1762621837802,-56.13278157,0.00017696,2]
[393413429,1762621837818,-243.86721843,0.00017696,2]
[393413430,1762621837827,-1711.18,0.00017697,2]
[393413431,1762621837837,-600.0,0.000177,6]
[393413432,1762621837848,-900.0,0.000178,6]
[393413433,1762621837857,-500.0,0.00017873,2]
[393413434,1762621837867,-500.0,0.00017873,2]
[393413435,1762621837877,-500.0,0.00017873,2]
[393413436,1762621837887,-500.0,0.00017873,2]
[393413437,1762621837897,-171.44321008,0.00017873,2]
[393413438,1762621837909,-328.55678992,0.00017873,2]
[393413439,1762621837919,-340.0,0.00017894,2]
[393413440,1762621837928,-7286.85938352,0.00017895,2]
[393413441,1762621837938,-14322.52045114,0.00017895,2]
[393413442,1762621837948,-412.0881829,0.00017899,2]
[393413443,1762621837958,-500.0,0.00017899,2]
[393413444,1762621837968,-500.0,0.00017899,2]
[393413445,1762621837977,-500.0,0.00017899,2]
[393413446,1762621837987,-500.0,0.00017899,2]
[393413447,1762621837996,-352.5846249,0.00017899,2]
[393413448,1762621838181,-500.0,0.00017899,2]
[393413449,1762621838193,-500.0,0.00017899,2]
[393413450,1762621838203,-500.0,0.00017899,2]
[393413451,1762621838213,-500.0,0.00017899,2]
[393413452,1762621838224,-500.0,0.00017899,2]
[393413453,1762621838235,-500.0,0.00017899,2]
[393413454,1762621838245,-500.0,0.00017899,2]